fUSD/lending_fUSD_20260616
["ID","MTS","AMOUNT","RATE_DAILY","PERIOD"]
[425198679,1781567457000,-185.488402,0.00037934,30]
[425198666,1781567457000,-280.0,0.00037934,30]
[425198683,1781567457000,-756.131839,0.00037934,30]
[425198694,1781567457000,-195.330234,0.00037934,30]
[425198702,1781567457000,-406.01,0.00037953,120]
[425198692,1781567457000,-948.10486,0.00037934,30]
[425198687,1781567457000,-756.131839,0.00037934,30]
[425198684,1781567457000,-756.131839,0.00037934,30]
[425198681,1781567457000,-601.499016,0.00037934,30]
[425198688,1781567457000,-948.10486,0.00037934,30]
[425198680,1781567457000,-601.499016,0.00037934,30]
[425198678,1781567457000,-185.488402,0.00037934,30]
[425198690,1781567457000,-948.10486,0.00037934,30]
[425198689,1781567457000,-948.10486,0.00037934,30]
[425198682,1781567457000,-601.499016,0.00037934,30]
[425198686,1781567457000,-601.499016,0.00037934,30]
[425198685,1781567457000,-756.131839,0.00037934,30]
[425198773,1781567458000,-223.528768,0.00038,30]
[425198770,1781567458000,-151.0,0.00038,30]
[425198768,1781567458000,-161.815588,0.00038,30]
[425198763,1781567458000,-760161.064906,0.00038,20]
[425198762,1781567458000,-291.0,0.00038,7]
[425198759,1781567458000,-500.0,0.00038,120]
[425198765,1781567458000,-153.0,0.00038,120]
[425198760,1781567458000,-1000.0,0.00038,120]
[425198761,1781567458000,-174.45830528,0.00038,7]
[425198755,1781567458000,-200.0,0.00038,120]
[425198766,1781567458000,-979.78050255,0.00038,10]
[425198764,1781567458000,-800.0,0.00038,7]
[425198771,1781567458000,-223.528768,0.00038,30]
[425198777,1781567458000,-151.644861,0.00038,30]
[425198772,1781567458000,-151.0,0.00038,30]
[425198769,1781567458000,-151.0,0.00038,30]
[425198778,1781567458000,-151.644861,0.00038,30]
[425198779,1781567458000,-151.644861,0.00038,30]
[425198776,1781567458000,-223.528768,0.00038,30]
[425198775,1781567458000,-223.528768,0.00038,30]
[425198781,1781567458000,-151.0,0.00038,30]
[425198786,1781567458000,-151.0,0.00038,30]
[425198785,1781567458000,-178.698348,0.00038,30]
[425198780,1781567458000,-151.644861,0.00038,30]
[425198787,1781567458000,-151.0,0.00038,30]
[425198757,1781567458000,-10000.0,0.00038,120]
[425198790,1781567458000,-151.0,0.00038,30]
[425198774,1781567458000,-151.0,0.00038,30]
[425198767,1781567458000,-2184.0,0.00038,30]
[425198740,1781567458000,-151.0,0.00037953,30]
[425198756,1781567458000,-10000.0,0.00038,120]
[425198789,1781567458000,-241.080688,0.00038,30]
[425198728,1781567458000,-151.0,0.00037953,30]
[425198729,1781567458000,-321.936413,0.00037953,30]
[425198727,1781567458000,-248.931111,0.00037953,30]
[425198731,1781567458000,-504.603539,0.00037953,30]
[425198742,1781567458000,-151.0,0.00037953,30]
[425198741,1781567458000,-1220.016296,0.00037953,30]
[425198730,1781567458000,-153.463369,0.00037953,30]
[425198732,1781567458000,-1221.118993,0.00037953,30]
[425198738,1781567458000,-153.463369,0.00037953,30]
[425198733,1781567458000,-151.0,0.00037953,30]
[425198734,1781567458000,-1220.016296,0.00037953,30]
[425198736,1781567458000,-151.962728,0.00037953,30]
[425198739,1781567458000,-504.603539,0.00037953,30]
[425198735,1781567458000,-151.0,0.00037953,30]
[425198743,1781567458000,-151.0,0.00037953,30]
[425198745,1781567458000,-153.463369,0.00037953,30]
[425198746,1781567458000,-504.603539,0.00037953,30]
[425198744,1781567458000,-1221.118993,0.00037953,30]
[425198750,1781567458000,-12458.0,0.00037985,4]
[425198747,1781567458000,-151.0,0.00037953,30]
[425198752,1781567458000,-1656.31903185,0.00037991,120]
[425198749,1781567458000,-400.0,0.0003797,2]
[425198748,1781567458000,-400.0,0.0003797,2]
[425198751,1781567458000,-11356.41621565,0.00037991,120]
[425198753,1781567458000,-426.0,0.00037997,2]
[425198754,1781567458000,-4948.45326764,0.00038,120]
[425198758,1781567458000,-471.13,0.00038,60]
[425198783,1781567458000,-151.0,0.00038,30]
[425198737,1781567458000,-321.936413,0.00037953,30]
[425198782,1781567458000,-151.0,0.00038,30]
[425198828,1781567458000,-287.441322,0.00038,30]
[425198820,1781567458000,-258.672362,0.00038,30]
[425198818,1781567458000,-312.330299,0.00038,30]
[425198819,1781567458000,-292.456678,0.00038,30]
[425198821,1781567458000,-467.672188,0.00038,30]
[425198826,1781567458000,-151.0,0.00038,30]
[425198824,1781567458000,-310.652532,0.00038,30]
[425198830,1781567458000,-312.330299,0.00038,30]
[425198831,1781567458000,-467.672188,0.00038,30]
[425198840,1781567458000,-2946.413801,0.00038,30]
[425198829,1781567458000,-292.456678,0.00038,30]
[425198832,1781567458000,-310.652532,0.00038,30]
[425198833,1781567458000,-2946.413801,0.00038,30]
[425198823,1781567458000,-292.456678,0.00038,30]
[425198839,1781567458000,-310.652532,0.00038,30]
[425198848,1781567458000,-184.272246,0.00038,30]
[425198838,1781567458000,-467.672188,0.00038,30]
[425198834,1781567458000,-184.272246,0.00038,30]
[425198836,1781567458000,-258.672362,0.00038,30]
[425198837,1781567458000,-312.330299,0.00038,30]
[425198841,1781567458000,-184.272246,0.00038,30]
[425198842,1781567458000,-287.441322,0.00038,30]
[425198843,1781567458000,-258.672362,0.00038,30]
[425198846,1781567458000,-2946.413801,0.00038,30]
[425198849,1781567458000,-184.272246,0.00038,30]
[425198844,1781567458000,-165.852508,0.00038,30]
[425198847,1781567458000,-287.441322,0.00038,30]
[425198788,1781567458000,-205.612171,0.00038,30]
[425198835,1781567458000,-287.441322,0.00038,30]
[425198822,1781567458000,-312.330299,0.00038,30]
[425198845,1781567458000,-310.652532,0.00038,30]
[425198827,1781567458000,-258.672362,0.00038,30]
[425198784,1781567458000,-151.0,0.00038,30]
[425198792,1781567458000,-241.080688,0.00038,30]
[425198801,1781567458000,-368.847217,0.00038,30]
[425198791,1781567458000,-205.612171,0.00038,30]
[425198793,1781567458000,-165.664658,0.00038,30]
[425198802,1781567458000,-486.971258,0.00038,30]
[425198794,1781567458000,-205.612171,0.00038,30]
[425198803,1781567458000,-330.587059,0.00038,30]
[425198825,1781567458000,-2946.413801,0.00038,30]
[425198795,1781567458000,-241.080688,0.00038,30]
[425198798,1781567458000,-151.0,0.00038,7]
[425198799,1781567458000,-151.0,0.00038,7]
[425198797,1781567458000,-241.080688,0.00038,30]
[425198796,1781567458000,-205.612171,0.00038,30]
[425198800,1781567458000,-486.971258,0.00038,30]
[425198815,1781567458000,-156.119757,0.00038,30]
[425198805,1781567458000,-486.971258,0.00038,30]
[425198816,1781567458000,-292.456678,0.00038,30]
[425198810,1781567458000,-368.847217,0.00038,30]
[425198812,1781567458000,-156.119757,0.00038,30]
[425198814,1781567458000,-156.119757,0.00038,30]
[425198811,1781567458000,-330.587059,0.00038,30]
[425198806,1781567458000,-330.587059,0.00038,30]
[425198813,1781567458000,-156.119757,0.00038,30]
[425198808,1781567458000,-486.971258,0.00038,30]
[425198807,1781567458000,-368.847217,0.00038,30]
[425198804,1781567458000,-368.847217,0.00038,30]
[425198809,1781567458000,-330.587059,0.00038,30]
[425198817,1781567458000,-467.672188,0.00038,30]
[425198886,1781567459000,-1196.260732,0.00038,30]
[425198891,1781567459000,-154.281915,0.00038,30]
[425198887,1781567459000,-151.0,0.00038,30]
[425198888,1781567459000,-151.0,0.00038,30]
[425198889,1781567459000,-1196.260732,0.00038,30]
[425198884,1781567459000,-151.0,0.00038,30]
[425198883,1781567459000,-1196.260732,0.00038,30]
[425198880,1781567459000,-460.448894,0.00038,30]
[425198878,1781567459000,-151.0,0.00038,30]
[425198882,1781567459000,-162.832871,0.00038,30]
[425198885,1781567459000,-162.832871,0.00038,30]
[425198892,1781567459000,-1196.260732,0.00038,30]
[425198908,1781567459000,-151.0,0.00038,30]
[425198894,1781567459000,-151.0,0.00038,30]
[425198896,1781567459000,-151.0,0.00038,30]
[425198895,1781567459000,-154.281915,0.00038,30]
[425198898,1781567459000,-151.0,0.00038,30]
[425198897,1781567459000,-154.281915,0.00038,30]
[425198899,1781567459000,-678.459972,0.00038,30]
[425198901,1781567459000,-678.459972,0.00038,30]
[425198900,1781567459000,-678.459972,0.00038,30]
[425198902,1781567459000,-1207.155861,0.00038,30]
[425198907,1781567459000,-151.0,0.00038,30]
[425198911,1781567459000,-296.477241,0.00038,30]
[425198906,1781567459000,-1207.155861,0.00038,30]
[425198890,1781567459000,-151.0,0.00038,30]
[425198893,1781567459000,-154.281915,0.00038,30]
[425198881,1781567459000,-151.0,0.00038,30]
[425198861,1781567459000,-290.2149,0.00038,30]
[425198873,1781567459000,-215.742412,0.00038,30]
[425198912,1781567459000,-151.0,0.00038,30]
[425198852,1781567459000,-151.0,0.00038,30]
[425198851,1781567459000,-248.522295,0.00038,30]
[425198853,1781567459000,-290.2149,0.00038,30]
[425198850,1781567459000,-163.573614,0.00038,30]
[425198855,1781567459000,-248.522295,0.00038,30]
[425198865,1781567459000,-151.0,0.00038,3]
[425198854,1781567459000,-163.573614,0.00038,30]
[425198857,1781567459000,-290.2149,0.00038,30]
[425198859,1781567459000,-248.522295,0.00038,30]
[425198856,1781567459000,-151.0,0.00038,30]
[425198860,1781567459000,-151.0,0.00038,30]
[425198858,1781567459000,-163.573614,0.00038,30]
[425198863,1781567459000,-151.0,0.00038,30]
[425198864,1781567459000,-248.522295,0.00038,30]
[425198862,1781567459000,-163.573614,0.00038,30]
[425198866,1781567459000,-215.742412,0.00038,30]
[425198869,1781567459000,-460.448894,0.00038,30]
[425198868,1781567459000,-151.0,0.00038,3]
[425198867,1781567459000,-290.2149,0.00038,30]
[425198870,1781567459000,-215.742412,0.00038,30]
[425198871,1781567459000,-460.448894,0.00038,30]
[425198877,1781567459000,-215.742412,0.00038,30]
[425198875,1781567459000,-162.832871,0.00038,30]
[425198872,1781567459000,-156.56085,0.00038,30]
[425198876,1781567459000,-460.448894,0.00038,30]
[425198874,1781567459000,-151.0,0.00038,30]
[425198879,1781567459000,-162.832871,0.00038,30]
[425198910,1781567459000,-165.152249,0.00038,30]
[425198914,1781567459000,-151.0,0.00038,30]
[425198909,1781567459000,-151.0,0.00038,30]
[425198943,1781567459000,-489.266312,0.00038,30]
[425198939,1781567459000,-489.266312,0.00038,30]
[425198945,1781567459000,-151.0,0.00038,30]
[425198944,1781567459000,-151.0,0.00038,30]
[425198947,1781567459000,-530.377186,0.00038,30]
[425198946,1781567459000,-151.0,0.00038,30]
[425198950,1781567459000,-530.377186,0.00038,30]
[425198960,1781567459000,-727.357407,0.00038,30]
[425198949,1781567459000,-530.377186,0.00038,30]
[425198952,1781567459000,-271.79168,0.00038,30]
[425198961,1781567459000,-199.872677,0.00038,30]
[425198959,1781567459000,-164.377961,0.00038,30]
[425198940,1781567459000,-151.0,0.00038,30]
[425198951,1781567459000,-530.377186,0.00038,30]
[425198957,1781567459000,-727.357407,0.00038,30]
[425198954,1781567459000,-271.79168,0.00038,30]
[425198955,1781567459000,-727.357407,0.00038,30]
[425198958,1781567459000,-151.0,0.00038,30]
[425198903,1781567459000,-678.459972,0.00038,30]
[425198962,1781567459000,-850.0,0.00038,2]
[425198963,1781567459000,-164.377961,0.00038,30]
[425198967,1781567459000,-243.012262,0.00038,30]
[425198965,1781567459000,-727.357407,0.00038,30]
[425198964,1781567459000,-1725.319869,0.00038,30]
[425198968,1781567459000,-164.377961,0.00038,30]
[425198966,1781567459000,-193.276159,0.00038,30]
[425198953,1781567459000,-271.79168,0.00038,30]
[425198942,1781567459000,-489.266312,0.00038,30]
[425198956,1781567459000,-271.79168,0.00038,30]
[425198937,1781567459000,-489.266312,0.00038,30]
[425198941,1781567459000,-152.0,0.00038,120]
[425198904,1781567459000,-1207.155861,0.00038,30]
[425198905,1781567459000,-1207.155861,0.00038,30]
[425198913,1781567459000,-172.511072,0.00038,30]
[425198915,1781567459000,-165.152249,0.00038,30]
[425198916,1781567459000,-376.042888,0.00038,30]
[425198918,1781567459000,-172.511072,0.00038,30]
[425198920,1781567459000,-376.042888,0.00038,30]
[425198919,1781567459000,-165.152249,0.00038,30]
[425198923,1781567459000,-165.152249,0.00038,30]
[425198924,1781567459000,-376.042888,0.00038,30]
[425198921,1781567459000,-296.477241,0.00038,30]
[425198922,1781567459000,-172.511072,0.00038,30]
[425198917,1781567459000,-296.477241,0.00038,30]
[425198927,1781567459000,-172.511072,0.00038,30]
[425198948,1781567459000,-151.0,0.00038,30]
[425198925,1781567459000,-296.477241,0.00038,30]
[425198938,1781567459000,-151.0,0.00038,30]
[425198934,1781567459000,-500.0,0.00038,30]
[425198929,1781567459000,-151.0,0.00038,30]
[425198936,1781567459000,-500.0,0.00038,30]
[425198932,1781567459000,-151.0,0.00038,30]
[425198931,1781567459000,-500.0,0.00038,30]
[425198935,1781567459000,-151.0,0.00038,30]
[425198926,1781567459000,-151.0,0.00038,30]
[425198933,1781567459000,-500.0,0.00038,30]
[425198928,1781567459000,-376.042888,0.00038,30]
[425198930,1781567459000,-151.0,0.00038,30]
[425198989,1781567460000,-729.481504,0.00038,30]
[425198999,1781567460000,-200.0,0.00038,10]
[425198992,1781567460000,-2231.932758,0.00038,30]
[425198996,1781567460000,-2231.932758,0.00038,30]
[425198994,1781567460000,-2231.932758,0.00038,30]
[425198993,1781567460000,-498.718574,0.00038,30]
[425198995,1781567460000,-498.718574,0.00038,30]
[425198997,1781567460000,-498.718574,0.00038,30]
[425199001,1781567460000,-753.60554,0.00038,30]
[425199005,1781567460000,-162.365057,0.00038,30]
[425199003,1781567460000,-299.787974,0.00038,30]
[425199006,1781567460000,-299.787974,0.00038,30]
[425199004,1781567460000,-753.60554,0.00038,30]
[425199007,1781567460000,-162.365057,0.00038,30]
[425199002,1781567460000,-498.718574,0.00038,30]
[425199011,1781567460000,-2000.0,0.00038,30]
[425199009,1781567460000,-1996.351139,0.00038,30]
[425198998,1781567460000,-299.787974,0.00038,30]
[425199000,1781567460000,-299.787974,0.00038,30]
[425198987,1781567460000,-729.481504,0.00038,30]
[425198978,1781567460000,-243.012262,0.00038,30]
[425198991,1781567460000,-2231.932758,0.00038,30]
[425198974,1781567460000,-243.012262,0.00038,30]
[425198973,1781567460000,-193.276159,0.00038,30]
[425198969,1781567460000,-193.276159,0.00038,30]
[425198971,1781567460000,-164.377961,0.00038,30]
[425198972,1781567460000,-1725.319869,0.00038,30]
[425198970,1781567460000,-243.012262,0.00038,30]
[425198975,1781567460000,-156.333178,0.00038,30]
[425198979,1781567460000,-156.333178,0.00038,30]
[425198990,1781567460000,-729.481504,0.00038,30]
[425198977,1781567460000,-193.276159,0.00038,30]
[425198980,1781567460000,-1725.319869,0.00038,30]
[425198985,1781567460000,-214.543999,0.00038,30]
[425198976,1781567460000,-1725.319869,0.00038,30]
[425198986,1781567460000,-214.543999,0.00038,30]
[425198981,1781567460000,-156.333178,0.00038,30]
[425198983,1781567460000,-214.543999,0.00038,30]
[425198984,1781567460000,-729.481504,0.00038,30]
[425198988,1781567460000,-214.543999,0.00038,30]
[425198982,1781567460000,-156.333178,0.00038,30]
[425199010,1781567460000,-151.0,0.00038,30]
[425199014,1781567460000,-753.60554,0.00038,30]
[425199013,1781567460000,-1996.351139,0.00038,30]
[425199034,1781567460000,-428.663879,0.00038,30]
[425199037,1781567460000,-151.0,0.00038,30]
[425199048,1781567460000,-3341.28504,0.00038,30]
[425199038,1781567460000,-151.0,0.00038,30]
[425199039,1781567460000,-4282.553002,0.00038,7]
[425199042,1781567460000,-151.0,0.00038,30]
[425199040,1781567460000,-4282.553002,0.00038,7]
[425199047,1781567460000,-151.0,0.00038,15]
[425199032,1781567460000,-428.663879,0.00038,30]
[425199041,1781567460000,-4282.553002,0.00038,7]
[425199046,1781567460000,-151.0,0.00038,30]
[425199045,1781567460000,-393.665741,0.00038,30]
[425199050,1781567460000,-151.0,0.00038,30]
[425199053,1781567460000,-1297.150562,0.00038,30]
[425199051,1781567460000,-202.996718,0.00038,30]
[425199052,1781567460000,-151.0,0.00038,30]
[425199049,1781567460000,-393.665741,0.00038,30]
[425199008,1781567460000,-753.60554,0.00038,30]
[425199043,1781567460000,-393.665741,0.00038,30]
[425199029,1781567460000,-3030.842903,0.00038,30]
[425199044,1781567460000,-4282.553002,0.00038,7]
[425199028,1781567460000,-282.31676,0.00038,30]
[425199031,1781567460000,-428.663879,0.00038,30]
[425199012,1781567460000,-162.365057,0.00038,30]
[425199015,1781567460000,-1996.351139,0.00038,30]
[425199016,1781567460000,-162.365057,0.00038,30]
[425199019,1781567460000,-762.999368,0.00038,30]
[425199018,1781567460000,-762.999368,0.00038,30]
[425199021,1781567460000,-282.31676,0.00038,30]
[425199023,1781567460000,-282.31676,0.00038,30]
[425199020,1781567460000,-2000.0,0.00038,15]
[425199017,1781567460000,-1996.351139,0.00038,30]
[425199022,1781567460000,-762.999368,0.00038,30]
[425199026,1781567460000,-282.31676,0.00038,30]
[425199025,1781567460000,-3030.842903,0.00038,30]
[425199036,1781567460000,-151.0,0.00038,30]
[425199030,1781567460000,-3030.842903,0.00038,30]
[425199033,1781567460000,-428.663879,0.00038,30]
[425199035,1781567460000,-151.0,0.00038,30]
[425199024,1781567460000,-762.999368,0.00038,30]
[425199027,1781567460000,-3030.842903,0.00038,30]
[425199089,1781567461000,-768.562163,0.00038,30]
[425199087,1781567461000,-768.562163,0.00038,30]
[425199092,1781567461000,-341.695769,0.00038,30]
[425199091,1781567461000,-768.562163,0.00038,30]
[425199094,1781567461000,-613.681578,0.00038,30]
[425199093,1781567461000,-613.681578,0.00038,30]
[425199090,1781567461000,-341.695769,0.00038,30]
[425199086,1781567461000,-341.695769,0.00038,30]
[425199095,1781567461000,-613.681578,0.00038,30]
[425199097,1781567461000,-183.05286,0.00038,30]
[425199085,1781567461000,-768.562163,0.00038,30]
[425199088,1781567461000,-341.695769,0.00038,30]
[425199099,1781567461000,-391.624951,0.00038,30]
[425199103,1781567461000,-151.0,0.00038,30]
[425199096,1781567461000,-613.681578,0.00038,30]
[425199108,1781567461000,-151.0,0.00038,30]
[425199107,1781567461000,-291.209561,0.00038,30]
[425199105,1781567461000,-184.20481,0.00038,30]
[425199098,1781567461000,-183.05286,0.00038,30]
[425199100,1781567461000,-291.209561,0.00038,30]
[425199102,1781567461000,-183.05286,0.00038,30]
[425199104,1781567461000,-391.624951,0.00038,30]
[425199109,1781567461000,-183.05286,0.00038,30]
[425199120,1781567461000,-189.455597,0.00038,30]
[425199110,1781567461000,-151.0,0.00038,30]
[425199082,1781567461000,-151.0,0.00038,30]
[425199106,1781567461000,-189.455597,0.00038,30]
[425199081,1781567461000,-244.96252,0.00038,30]
[425199064,1781567461000,-3341.28504,0.00038,30]
[425199083,1781567461000,-151.0,0.00038,30]
[425199060,1781567461000,-1297.150562,0.00038,30]
[425199054,1781567461000,-151.0,0.00038,15]
[425199055,1781567461000,-390.365369,0.00038,30]
[425199059,1781567461000,-151.0,0.00038,30]
[425199058,1781567461000,-3341.28504,0.00038,30]
[425199057,1781567461000,-393.665741,0.00038,30]
[425199056,1781567461000,-151.0,0.00038,30]
[425199061,1781567461000,-151.0,0.00038,30]
[425199112,1781567461000,-189.455597,0.00038,30]
[425199062,1781567461000,-151.0,0.00038,30]
[425199063,1781567461000,-390.365369,0.00038,30]
[425199072,1781567461000,-1297.150562,0.00038,30]
[425199070,1781567461000,-390.365369,0.00038,30]
[425199068,1781567461000,-151.0,0.00038,30]
[425199065,1781567461000,-227.578186,0.00038,30]
[425199067,1781567461000,-151.0,0.00038,30]
[425199069,1781567461000,-151.0,0.00038,30]
[425199066,1781567461000,-1297.150562,0.00038,30]
[425199071,1781567461000,-3341.28504,0.00038,30]
[425199073,1781567461000,-151.0,0.00038,30]
[425199084,1781567461000,-244.96252,0.00038,30]
[425199077,1781567461000,-151.0,0.00038,30]
[425199076,1781567461000,-151.0,0.00038,30]
[425199080,1781567461000,-244.96252,0.00038,30]
[425199075,1781567461000,-177.931286,0.00038,30]
[425199078,1781567461000,-390.365369,0.00038,30]
[425199074,1781567461000,-244.96252,0.00038,30]
[425199079,1781567461000,-262.946083,0.00038,30]
[425199111,1781567461000,-391.624951,0.00038,30]
[425199101,1781567461000,-189.455597,0.00038,30]
[425199116,1781567461000,-184.20481,0.00038,30]
[425199147,1781567461000,-3558.0,0.00038001,2]
[425199151,1781567461000,-278.0,0.00038016,120]
[425199153,1781567461000,-152.03334777,0.00038019,120]
[425199154,1781567461000,-350.0,0.0003802,3]
[425199148,1781567461000,-419.0,0.00038001,2]
[425199152,1781567461000,-278.0,0.00038016,120]
[425199149,1781567461000,-934.0,0.00038001,2]
[425199156,1781567461000,-151.0,0.0003803,14]
[425199150,1781567461000,-1000.0,0.00038014,60]
[425199155,1781567461000,-408.0,0.00038021,2]
[425199157,1781567461000,-151.0,0.00038033,30]
[425199162,1781567461000,-151.0,0.00038033,30]
[425199166,1781567461000,-151.0,0.00038033,30]
[425199160,1781567461000,-151.0,0.00038033,30]
[425199168,1781567461000,-215.567649,0.00038033,30]
[425199159,1781567461000,-151.0,0.00038033,30]
[425199164,1781567461000,-151.0,0.00038033,30]
[425199165,1781567461000,-151.0,0.00038033,30]
[425199158,1781567461000,-151.0,0.00038033,30]
[425199161,1781567461000,-151.0,0.00038033,30]
[425199163,1781567461000,-151.0,0.00038033,30]
[425199170,1781567461000,-151.0,0.00038033,30]
[425199172,1781567461000,-215.567649,0.00038033,30]
[425199169,1781567461000,-215.567649,0.00038033,30]
[425199171,1781567461000,-151.0,0.00038033,30]
[425199113,1781567461000,-291.209561,0.00038,30]
[425199173,1781567461000,-215.567649,0.00038033,30]
[425199145,1781567461000,-151.0,0.00038,30]
[425199146,1781567461000,-5000.0,0.00038,120]
[425199167,1781567461000,-151.0,0.00038033,30]
[425199143,1781567461000,-151.0,0.00038,30]
[425199114,1781567461000,-151.0,0.00038,30]
[425199136,1781567461000,-391.627607,0.00038,30]
[425199119,1781567461000,-151.0,0.00038,30]
[425199115,1781567461000,-151.0,0.00038,30]
[425199117,1781567461000,-151.0,0.00038,30]
[425199121,1781567461000,-291.209561,0.00038,30]
[425199122,1781567461000,-283.144804,0.00038,30]
[425199123,1781567461000,-151.0,0.00038,30]
[425199130,1781567461000,-787.561443,0.00038,30]
[425199132,1781567461000,-787.561443,0.00038,30]
[425199127,1781567461000,-184.20481,0.00038,30]
[425199124,1781567461000,-184.20481,0.00038,30]
[425199128,1781567461000,-391.627607,0.00038,30]
[425199125,1781567461000,-278.873756,0.00038,30]
[425199118,1781567461000,-391.624951,0.00038,30]
[425199135,1781567461000,-151.0,0.00038,30]
[425199126,1781567461000,-151.0,0.00038,30]
[425199129,1781567461000,-151.0,0.00038,30]
[425199134,1781567461000,-787.561443,0.00038,30]
[425199133,1781567461000,-391.627607,0.00038,30]
[425199139,1781567461000,-151.0,0.00038,30]
[425199140,1781567461000,-151.0,0.00038,30]
[425199138,1781567461000,-151.0,0.00038,30]
[425199131,1781567461000,-391.627607,0.00038,30]
[425199144,1781567461000,-151.0,0.00038,30]
[425199137,1781567461000,-787.561443,0.00038,30]
[425199142,1781567461000,-151.0,0.00038,30]
[425199141,1781567461000,-151.0,0.00038,30]
[425199210,1781567462000,-400.0,0.0003817,2]
[425199202,1781567462000,-151.0,0.00038133,30]
[425199211,1781567462000,-379.29139,0.0003817,98]
[425199215,1781567462000,-5000.0,0.00038175,120]
[425199213,1781567462000,-379.2914,0.0003817,98]
[425199208,1781567462000,-982.66116931,0.00038153,2]
[425199205,1781567462000,-249.56285894,0.00038143,2]
[425199214,1781567462000,-379.29139,0.0003817,98]
[425199212,1781567462000,-379.29139,0.0003817,98]
[425199206,1781567462000,-3050.37344203,0.00038152,120]
[425199216,1781567462000,-151.0,0.00038175,14]
[425199207,1781567462000,-284871.5714,0.00038153,7]
[425199209,1781567462000,-400.0,0.0003817,2]
[425199217,1781567462000,-655.5266008,0.00038177,2]
[425199226,1781567462000,-500.0,0.00038178,60]
[425199219,1781567462000,-157.9930764,0.00038177,120]
[425199221,1781567462000,-152.0,0.00038178,30]
[425199220,1781567462000,-152.0,0.00038178,30]
[425199222,1781567462000,-152.0,0.00038178,30]
[425199223,1781567462000,-151.0,0.00038178,30]
[425199227,1781567462000,-200.0,0.00038178,2]
[425199225,1781567462000,-500.0,0.00038178,60]
[425199224,1781567462000,-200.0,0.00038178,2]
[425199231,1781567462000,-800.0,0.00038178,14]
[425199238,1781567462000,-800.0,0.00038178,14]
[425199228,1781567462000,-500.0,0.00038178,60]
[425199232,1781567462000,-800.0,0.00038178,14]
[425199218,1781567462000,-150.0,0.00038177,120]
[425199201,1781567462000,-151.0,0.00038133,30]
[425199179,1781567462000,-151.0,0.00038033,30]
[425199200,1781567462000,-151.0,0.00038133,30]
[425199233,1781567462000,-800.0,0.00038178,14]
[425199180,1781567462000,-151.0,0.00038033,7]
[425199178,1781567462000,-151.0,0.00038033,30]
[425199176,1781567462000,-275.0,0.00038033,30]
[425199177,1781567462000,-275.0,0.00038033,30]